fUST/lending_fUST_20250426
["ID","MTS","AMOUNT","RATE_DAILY","PERIOD"]
[359032496,1745663434619,-500.0,0.00016438,2]
[359032497,1745663434631,-500.0,0.00016438,2]
[359032498,1745663434643,-173.58547447,0.00016438,2]
[359032499,1745663434657,-501.2090953,0.00016438,2]
[359032500,1745663434669,-1045.48,0.00016438,2]
[359032501,1745663434683,-500.0,0.00016438,2]
[359032502,1745663434695,-436.02951861,0.00016438,2]
[359032503,1745663434708,-500.0,0.00016438,2]
[359032504,1745663434720,-500.0,0.00016438,2]
[359032505,1745663434734,-500.0,0.00016438,2]
[359032506,1745663434746,-507.21273026,0.00016438,2]
[359032507,1745663434758,-504.36818305,0.00016438,2]
[359032508,1745663434772,-500.0,0.00016438,2]
[359032509,1745663434785,-1258.31,0.00016438,2]
[359032510,1745663434797,-1258.31,0.00016438,2]
[359032511,1745663434810,-1258.31,0.00016438,2]
[359032512,1745663434822,-1258.31,0.00016438,2]
[359032513,1745663434832,-1258.31,0.00016438,2]
[359032514,1745663434843,-601.0,0.00016438,2]
[359032515,1745663434855,-500.0,0.00016438,2]
[359032516,1745663434867,-500.0,0.00016438,2]
[359032517,1745663434879,-500.0,0.00016438,2]
[359032518,1745663434892,-500.0,0.00016438,2]
[359032519,1745663434905,-500.0,0.00016438,2]
[359032520,1745663434918,-523.76809137,0.00016438,2]
[359032521,1745663434930,-500.0,0.00016438,2]
[359032522,1745663434943,-500.0,0.00016438,2]
[359032523,1745663434956,-501.69745198,0.00016438,2]
[359032524,1745663434969,-500.0,0.00016438,2]
[359032525,1745663434983,-500.0,0.00016438,2]
[359032526,1745663434997,-500.0,0.00016438,2]
[359032527,1745663435009,-500.0,0.00016438,2]
[359032528,1745663435025,-511.82844527,0.00016438,2]
[359032529,1745663435044,-500.0,0.00016438,2]
[359032530,1745663435054,-500.0,0.00016438,2]
[359032531,1745663435065,-500.0,0.00016438,2]
[359032532,1745663435078,-1307.83,0.00016438,2]
[359032533,1745663435091,-500.0,0.00016438,2]
[359032534,1745663435105,-500.0,0.00016438,2]
[359032535,1745663435119,-247.426761,0.00016438,2]
[359032536,1745663435131,-500.0,0.00016473,2]
[359032537,1745663435143,-268.96297195,0.00016473,2]
[359032538,1745663435154,-500.0,0.00016473,2]
[359032539,1745663435167,-500.0,0.00016473,2]
[359032540,1745663435179,-500.0,0.00016473,2]
[359032541,1745663435192,-500.0,0.00016473,2]
[359032542,1745663435206,-500.0,0.00016473,2]
[359032543,1745663435217,-500.0,0.00016473,2]
[359032544,1745663435229,-500.0,0.00016473,2]
[359032545,1745663435241,-500.0,0.00016473,2]
[359032546,1745663435253,-151.0,0.00016493,2]
[359032547,1745663435265,-500.0,0.00016493,2]
[359032548,1745663435277,-251.72418231,0.00016493,2]
[359032549,1745663435288,-500.0,0.00016493,2]
[359032550,1745663435299,-500.0,0.00016493,2]
[359032551,1745663435313,-295.38866125,0.00016548,2]
[359032552,1745663435324,-500.0,0.00016548,2]
[359032553,1745663435336,-500.0,0.00016548,2]
[359032554,1745663435351,-500.0,0.00016548,2]
[359032555,1745663435364,-403.0,0.00016587,2]
[359032556,1745663435376,-503.13461601,0.00016602,2]
[359032557,1745663435388,-500.0,0.00016602,2]
[359032558,1745663435402,-300.22596648,0.00016602,2]
[359032559,1745663435414,-1258.31,0.00016711,2]
[359032560,1745663435433,-1258.31,0.00016711,2]
[359032561,1745663435448,-500.0,0.00016712,2]
[359032562,1745663435462,-500.0,0.00016712,2]
[359032563,1745663435476,-500.0,0.00016712,2]
[359032564,1745663435489,-500.0,0.00016712,2]
[359032565,1745663435502,-500.0,0.00016712,2]
[359032566,1745663435514,-872.57,0.00016712,2]
[359032567,1745663435526,-500.0,0.00016712,2]
[359032568,1745663435539,-303.59216012,0.00016712,2]
[359032569,1745663435551,-299.9,0.00016712,2]
[359032570,1745663435562,-663.79,0.00016712,2]
[359032571,1745663435574,-192.61,0.00016712,2]
[359032572,1745663435585,-726.01,0.00016712,2]
[359032573,1745663435597,-1167.65,0.00016712,2]
[359032574,1745663435608,-500.0,0.00016712,2]
[359032575,1745663435620,-500.0,0.00016712,2]
[359032576,1745663435632,-500.0,0.00016712,2]
[359032577,1745663435644,-500.0,0.00016712,2]
[359032578,1745663435656,-922.01,0.00016712,2]
[359032579,1745663435669,-500.0,0.00016712,2]
[359032580,1745663435681,-528.03169738,0.00016712,2]
[359032581,1745663435693,-500.0,0.00016712,2]
[359032582,1745663435704,-637.49309326,0.00016712,2]
[359032583,1745663435716,-500.0,0.00016712,2]
[359032584,1745663435728,-500.0,0.00016712,2]
[359032585,1745663435739,-664.5,0.00016712,2]
[359032586,1745663435751,-500.0,0.00016712,2]
[359032587,1745663435763,-378.44,0.00016712,2]
[359032588,1745663435775,-2730.57,0.00016712,2]
[359032589,1745663435787,-155.92,0.00016712,2]
[359032590,1745663435798,-170.98,0.00016712,2]
[359032591,1745663435809,-596.34,0.00016712,2]
[359032592,1745663435821,-275.42,0.00016712,2]
[359032593,1745663435833,-500.0,0.00016712,2]
[359032594,1745663435844,-694.17,0.00016712,2]
[359032595,1745663435856,-430.28,0.00016712,2]
[359032596,1745663435867,-353.69,0.00016712,2]
[359032597,1745663435879,-2408.9,0.00016712,2]
[359032598,1745663435890,-401.96,0.00016712,2]
[359032599,1745663435909,-500.0,0.00016712,2]
[359032600,1745663435921,-624.14,0.00016712,2]
[359032601,1745663435933,-564.11,0.00016712,2]
[359032602,1745663435945,-500.0,0.00016712,2]
[359032603,1745663435958,-500.0,0.00016712,2]
[359032604,1745663435969,-471.86,0.00016712,2]
[359032605,1745663435981,-315.22,0.00016712,2]
[359032606,1745663435992,-219.07,0.00016712,2]
[359032607,1745663436004,-500.0,0.00016712,2]
[359032608,1745663436015,-500.0,0.00016712,2]
[359032609,1745663436027,-500.0,0.00016712,2]
[359032610,1745663436039,-500.0,0.00016712,2]
[359032611,1745663436051,-500.0,0.00016712,2]
[359032612,1745663436062,-747.1,0.00016712,2]
[359032613,1745663436074,-313.07,0.00016712,2]
[359032614,1745663436085,-500.0,0.00016712,2]
[359032615,1745663436097,-500.0,0.00016712,2]
[359032616,1745663436108,-500.0,0.00016712,2]
[359032617,1745663436120,-646.96,0.00016712,2]
[359032618,1745663436131,-267.04277919,0.00016712,2]
[359032619,1745663436502,-232.95722081,0.00016712,2]
[359032620,1745663436512,-1684.7,0.00016712,2]
[359032621,1745663436522,-500.0,0.00016712,2]
[359032622,1745663436532,-1032.45,0.00016712,2]
[359032623,1745663436542,-161.66,0.00016712,2]
[359032624,1745663436552,-500.0,0.00016712,2]
[359032625,1745663436562,-1029.8,0.00016712,2]
[359032626,1745663436572,-431.76,0.00016712,2]
[359032627,1745663436582,-500.0,0.00016712,2]
[359032628,1745663436590,-500.0,0.00016712,2]
[359032629,1745663436600,-940.39,0.00016712,2]
[359032630,1745663436609,-500.0,0.00016712,2]
[359032631,1745663436619,-500.0,0.00016712,2]
[359032632,1745663436628,-995.7,0.00016712,2]
[359032633,1745663436638,-386.11,0.00016712,2]
[359032634,1745663436647,-500.0,0.00016712,2]
[359032635,1745663436657,-500.0,0.00016712,2]
[359032636,1745663436666,-500.0,0.00016712,2]
[359032637,1745663436676,-500.0,0.00016712,2]
[359032638,1745663436686,-1033.53,0.00016712,2]
[359032639,1745663436695,-1238.31,0.00016712,2]
[359032640,1745663436705,-1045.48,0.00016712,2]
[359032641,1745663436714,-365.86173935,0.00016712,2]
[359032642,1745663436724,-500.0,0.00016712,2]
[359032643,1745663436734,-176.06,0.00016712,2]
[359032644,1745663436745,-500.0,0.00016712,2]
[359032645,1745663436754,-500.0,0.00016712,2]
[359032646,1745663436764,-500.0,0.00016712,2]
[359032647,1745663436774,-500.0,0.00016712,2]
[359032648,1745663436783,-500.0,0.00016712,2]
[359032649,1745663436793,-500.0,0.00016712,2]
[359032650,1745663436803,-546.49436225,0.00016712,2]
[359032651,1745663436813,-500.0,0.00016712,2]
[359032652,1745663436822,-560.14,0.00016712,2]
[359032653,1745663436832,-500.0,0.00016712,2]
[359032654,1745663436842,-500.0,0.00016712,2]
[359032655,1745663436852,-500.0,0.00016712,2]
[359032656,1745663436861,-1307.83,0.00016712,2]
[359032657,1745663436871,-2386.52707492,0.000169,2]
[359032658,1745663436881,-1258.31,0.00016985,2]
[359032659,1745663436890,-1258.31,0.00016985,2]
[359032660,1745663436900,-500.0,0.00016986,2]
[359032661,1745663436910,-500.0,0.00016986,2]
[359032662,1745663436919,-500.0,0.00016986,2]
[359032663,1745663436929,-500.0,0.00016986,2]
[359032664,1745663436940,-500.0,0.00016986,2]
[359032665,1745663436949,-872.57,0.00016986,2]
[359032666,1745663436960,-500.0,0.00016986,2]
[359032667,1745663436970,-663.79,0.00016986,2]
[359032668,1745663436980,-726.01,0.00016986,2]
[359032669,1745663436989,-1167.65,0.00016986,2]
[359032670,1745663436999,-500.0,0.00016986,2]
[359032671,1745663437009,-500.0,0.00016986,2]
[359032672,1745663437018,-500.0,0.00016986,2]
[359032673,1745663437028,-500.0,0.00016986,2]
[359032674,1745663437038,-922.01,0.00016986,2]
[359032675,1745663437047,-500.0,0.00016986,2]
[359032676,1745663437056,-500.0,0.00016986,2]
[359032677,1745663437066,-500.0,0.00016986,2]
[359032678,1745663437076,-664.5,0.00016986,2]
[359032679,1745663437086,-500.0,0.00016986,2]
[359032680,1745663437095,-2730.57,0.00016986,2]
[359032681,1745663437105,-500.0,0.00016986,2]
[359032682,1745663437114,-694.17,0.00016986,2]
[359032683,1745663437128,-2408.9,0.00016986,2]
[359032684,1745663437137,-500.0,0.00016986,2]
[359032685,1745663437147,-564.11,0.00016986,2]
[359032686,1745663437156,-155.18,0.00016986,2]
[359032687,1745663437165,-500.0,0.00016986,2]
[359032688,1745663437175,-500.0,0.00016986,2]
[359032689,1745663437184,-500.0,0.00016986,2]
[359032690,1745663437194,-500.0,0.00016986,2]
[359032691,1745663437203,-500.0,0.00016986,2]
[359032692,1745663437213,-747.1,0.00016986,2]
[359032693,1745663437223,-500.0,0.00016986,2]
[359032694,1745663437232,-500.0,0.00016986,2]
[359032695,1745663437242,-646.96,0.00016986,2]
[359032696,1745663437251,-500.0,0.00016986,2]
[359032697,1745663437261,-1684.7,0.00016986,2]
[359032698,1745663437270,-500.0,0.00016986,2]
[359032699,1745663437280,-1032.45,0.00016986,2]
[359032700,1745663437290,-500.0,0.00016986,2]
[359032701,1745663437299,-1029.8,0.00016986,2]
[359032702,1745663437309,-940.39,0.00016986,2]
[359032703,1745663437318,-500.0,0.00016986,2]
[359032704,1745663437328,-500.0,0.00016986,2]
[359032705,1745663437338,-995.7,0.00016986,2]
[359032706,1745663437352,-192.53,0.00016986,2]
[359032707,1745663437362,-500.0,0.00016986,2]
[359032708,1745663437371,-500.0,0.00016986,2]
[359032709,1745663437380,-500.0,0.00016986,2]
[359032710,1745663437391,-1033.53,0.00016986,2]
[359032711,1745663437400,-1238.31,0.00016986,2]
[359032713,1745663437409,-1045.48,0.00016986,2]
[359032714,1745663437419,-500.0,0.00016986,2]
[359032715,1745663437429,-500.0,0.00016986,2]
[359032716,1745663437440,-500.0,0.00016986,2]
[359032717,1745663437449,-537.12,0.00016986,2]
[359032718,1745663437459,-1307.83,0.00016986,2]
[359032719,1745663437468,-1584.04307057,0.00016997,2]
[359032720,1745663437477,-1790.0,0.00017,2]
[359032721,1745663437487,-420.0,0.00017078,2]
[359032722,1745663437496,-420.0,0.00017078,2]
[359032723,1745663437505,-164.3427952,0.000171,2]
[359032724,1745663437515,-318.0053915,0.00017164,2]
[359032725,1745663437525,-1680.0,0.00017164,2]
[359032726,1745663437534,-151.0,0.000172,2]
[359032728,1745663437543,-1258.31,0.00017259,2]
[359032729,1745663437553,-1258.31,0.00017259,2]
[359032730,1745663437562,-1258.31,0.00017259,2]
[359032731,1745663437572,-12500.0,0.0001726,2]
[359032733,1745663437582,-500.0,0.0001726,2]
[359032735,1745663437592,-500.0,0.0001726,2]
[359032736,1745663437601,-500.0,0.0001726,2]
[359032737,1745663437610,-500.0,0.0001726,2]
[359032738,1745663437620,-2213.11977647,0.0001726,2]
[359032739,1745663437630,-500.0,0.0001726,2]
[359032740,1745663437639,-872.57,0.0001726,2]
[359032742,1745663437648,-500.0,0.0001726,2]
[359032744,1745663437658,-663.79,0.0001726,2]
[359032746,1745663437667,-726.01,0.0001726,2]
[359032748,1745663437677,-1167.65,0.0001726,2]
[359032750,1745663437687,-162.00959782,0.0001726,2]
[359032752,1745663437696,-500.0,0.0001726,2]
[359032754,1745663437706,-500.0,0.0001726,2]
[359032756,1745663437715,-922.01,0.0001726,2]
[359032758,1745663437724,-500.0,0.0001726,2]
[359032760,1745663437734,-500.0,0.0001726,2]
[359032761,1745663437743,-500.0,0.0001726,2]
[359032763,1745663437752,-664.5,0.0001726,2]
[359032765,1745663437761,-500.0,0.0001726,2]
[359032767,1745663437770,-2730.57,0.0001726,2]
[359032769,1745663437780,-324.6,0.0001726,2]
[359032771,1745663437790,-694.17,0.0001726,2]
[359032773,1745663437799,-2408.9,0.0001726,2]
[359032775,1745663437809,-500.0,0.0001726,2]
[359032777,1745663437818,-564.11,0.0001726,2]
[359032779,1745663437827,-500.0,0.0001726,2]
[359032781,1745663437837,-500.0,0.0001726,2]
[359032783,1745663437846,-500.0,0.0001726,2]
[359032785,1745663437855,-500.0,0.0001726,2]
[359032787,1745663437865,-500.0,0.0001726,2]
[359032789,1745663437884,-747.1,0.0001726,2]
[359032791,1745663437907,-500.0,0.0001726,2]
[359032793,1745663437916,-500.0,0.0001726,2]
[359032796,1745663437926,-646.96,0.0001726,2]
[359032799,1745663437936,-500.0,0.0001726,2]
[359032802,1745663437946,-1684.7,0.0001726,2]
[359032805,1745663437955,-335.44859628,0.0001726,2]
[359032807,1745663437964,-1032.45,0.0001726,2]
[359032809,1745663437974,-500.0,0.0001726,2]
[359032811,1745663437984,-1029.8,0.0001726,2]
[359032813,1745663437993,-940.39,0.0001726,2]
[359032815,1745663438004,-500.0,0.0001726,2]
[359032817,1745663438014,-500.0,0.0001726,2]
[359032819,1745663438023,-995.7,0.0001726,2]
[359032821,1745663438033,-500.0,0.0001726,2]
[359032824,1745663438045,-500.0,0.0001726,2]
[359032826,1745663438055,-500.0,0.0001726,2]
[359032827,1745663438066,-1033.53,0.0001726,2]
[359032830,1745663438077,-1238.31,0.0001726,2]
[359032831,1745663438086,-1045.48,0.0001726,2]
[359032834,1745663438096,-500.0,0.0001726,2]
[359032835,1745663438106,-638.02,0.0001726,2]
[359032837,1745663438116,-500.0,0.0001726,2]
[359032839,1745663438126,-500.0,0.00017273,2]
[359032841,1745663438136,-500.0,0.00017273,2]
[359032843,1745663438145,-500.0,0.00017273,2]
[359032846,1745663438155,-500.0,0.00017273,2]
[359032849,1745663438164,-505.51093352,0.00017273,2]
[359032852,1745663438174,-500.0,0.00017273,2]
[359032855,1745663438184,-503.15280732,0.00017273,2]
[359032858,1745663438194,-500.0,0.00017273,2]
[359032860,1745663438203,-172.99983927,0.00017273,2]
[359032862,1745663438214,-242.95910293,0.00017273,2]
[359032864,1745663438224,-505.16572172,0.00017273,2]
[359032866,1745663438234,-500.0,0.00017273,2]
[359032868,1745663438244,-530.38835807,0.00017273,2]
[359032870,1745663438254,-500.0,0.00017273,2]
[359032872,1745663438264,-500.0,0.00017273,2]
[359032874,1745663438274,-270.17522577,0.00017273,2]
[359032876,1745663438283,-500.0,0.00017273,2]
[359032878,1745663438293,-500.0,0.00017273,2]
[359032880,1745663438302,-500.0,0.00017273,2]
[359032882,1745663438312,-500.0,0.00017273,2]
[359032884,1745663438321,-523.92757597,0.00017273,2]
[359032886,1745663438331,-500.0,0.00017273,2]
[359032888,1745663438342,-500.0,0.00017273,2]
[359032890,1745663438354,-545.03157239,0.00017273,2]
[359032892,1745663438363,-500.0,0.00017273,2]
[359032894,1745663438374,-500.0,0.00017273,2]
[359032896,1745663438384,-500.0,0.00017273,2]
[359032898,1745663438393,-500.0,0.00017273,2]
[359032900,1745663438403,-527.97440072,0.00017273,2]
[359032902,1745663438413,-500.0,0.00017273,2]
[359032904,1745663438423,-500.0,0.00017273,2]
[359032906,1745663438433,-500.0,0.00017273,2]
[359032908,1745663438444,-361.6458294,0.00017288,2]
[359032910,1745663438454,-174.9106903,0.00017288,2]
[359032912,1745663438463,-174.9106903,0.00017288,2]
[359032914,1745663438473,-1700.0,0.0001729,2]
[359032916,1745663438484,-1258.31,0.00017299,2]
[359032918,1745663438494,-1258.31,0.00017299,2]
[359032920,1745663438504,-1258.31,0.00017299,2]
[359032922,1745663438514,-1258.31,0.00017299,2]
[359032924,1745663438524,-1258.31,0.00017299,2]
[359032926,1745663438533,-1258.31,0.00017299,2]
[359032928,1745663438543,-1258.31,0.00017299,2]
[359032930,1745663438552,-1258.31,0.00017299,2]
[359032932,1745663438562,-1258.31,0.00017299,2]
[359032934,1745663438571,-1258.31,0.00017299,2]
[359032936,1745663438581,-1258.31,0.00017299,2]
[359032938,1745663438591,-1258.38979662,0.00017299,2]
[359032940,1745663438600,-313.17372804,0.00017299,3]
[359032942,1745663438610,-840.35238838,0.00017299,3]
[359032944,1745663438619,-65832.76566884,0.00017299,3]
[359032946,1745663438630,-99626.67895822,0.000173,2]
[359032948,1745663438644,-695.00504384,0.000173,2]
[359032950,1745663438656,-386582.02499794,0.000173,2]
[359032997,1745663439109,-500.0,0.00016438,2]
[359032999,1745663439119,-356.93763268,0.00016438,2]
[359033002,1745663439137,-143.06236732,0.00016438,2]
[359033004,1745663439146,-500.0,0.00016438,2]
[359033006,1745663439156,-504.5373869,0.00016438,2]
[359033008,1745663439166,-355.56288096,0.00016438,2]
[359033010,1745663439176,-500.0,0.00016438,2]
[359033012,1745663439185,-500.0,0.00016438,2]
[359033014,1745663439195,-500.0,0.00016438,2]
[359033016,1745663439204,-500.0,0.00016712,2]
[359033018,1745663439213,-500.0,0.00016712,2]
[359033020,1745663439223,-500.0,0.00016712,2]
[359033022,1745663439235,-500.0,0.00016712,2]
[359033024,1745663439245,-500.0,0.00016712,2]
[359033025,1745663439255,-560.24,0.00016712,2]
[359033027,1745663439265,-613.66,0.00016712,2]
[359033029,1745663439275,-360.42,0.00016986,2]
[359033031,1745663439284,-500.0,0.00016986,2]
[359033033,1745663439294,-500.0,0.00016986,2]
[359033035,1745663439304,-500.0,0.00016986,2]
[359033037,1745663439313,-1307.83,0.0001726,2]
[359033039,1745663439323,-500.0,0.0001726,2]
[359033041,1745663439332,-500.0,0.0001726,2]
[359033043,1745663439344,-500.0,0.0001726,2]
[359033045,1745663439356,-375028.64145231,0.000173,2]
[359033047,1745663439366,-248810.37450522,0.000173,2]
[359033050,1745663439378,-1886.0,0.000173,2]
[359033833,1745663450703,420.8,0.00020845,15]
[359033849,1745664434134,-180.5644372,0.00014704,2]
[359033850,1745664434155,-410.4127238,0.00014939,2]
[359033851,1745664434176,-300.0,0.0001531,2]
[359033852,1745664434197,-224.491068,0.00015311,2]
[359033853,1745664434218,-762.37630356,0.00015311,2]
[359033877,1745664632200,-1694.18189661,0.0001521,2]
[359033878,1745664632212,-300.0,0.00015309,2]
[359033879,1745664632221,-300.0,0.00015309,2]
[359033880,1745664632231,-1200.0,0.00015309,2]
[359033881,1745664632241,-638.60782769,0.0001531,2]
[359033882,1745664632251,-500.0,0.0001531,2]
[359033883,1745664632261,-500.0,0.0001531,2]
[359033884,1745664632271,-500.0,0.0001531,2]
[359033885,1745664632281,-500.0,0.0001531,2]
[359033886,1745664632291,-500.0,0.0001531,2]
[359033887,1745664632302,-500.0,0.0001531,2]
[359033888,1745664632313,-500.0,0.0001531,2]
[359033889,1745664632323,-500.0,0.0001531,2]
[359033890,1745664632333,-500.0,0.0001531,2]
[359033891,1745664632343,-500.0,0.0001531,2]
[359033893,1745664632353,-500.0,0.0001531,2]
[359033894,1745664632363,-500.0,0.0001531,2]
[359033895,1745664632373,-500.0,0.0001531,2]
[359033896,1745664632383,-500.0,0.0001531,2]
[359033897,1745664632393,-500.0,0.0001531,2]
[359033898,1745664632403,-500.0,0.0001531,2]
[359033899,1745664632413,-500.0,0.0001531,2]
[359033900,1745664632423,-500.0,0.0001531,2]
[359033901,1745664632433,-500.0,0.0001531,2]
[359033902,1745664632443,-500.0,0.0001531,2]
[359033903,1745664632453,-500.0,0.0001531,2]
[359033905,1745664632695,-500.0,0.0001531,2]
[359033906,1745664632706,-500.0,0.0001531,2]
[359033907,1745664632716,-500.0,0.0001531,2]
[359033908,1745664632725,-500.0,0.0001531,2]
[359033909,1745664632735,-500.0,0.0001531,2]
[359033910,1745664632744,-500.0,0.0001531,2]
[359033911,1745664632753,-500.0,0.0001531,2]
[359033912,1745664632763,-500.0,0.0001531,2]
[359033913,1745664632776,-500.0,0.0001531,2]
[359033914,1745664632785,-500.0,0.0001531,2]
[359033915,1745664632794,-500.0,0.0001531,2]
[359033916,1745664632804,-500.0,0.0001531,2]
[359033917,1745664632813,-500.0,0.0001531,2]
[359033918,1745664632823,-500.0,0.0001531,2]
[359033919,1745664632832,-500.0,0.0001531,2]
[359033920,1745664632843,-500.0,0.0001531,2]
[359033921,1745664632853,-500.0,0.0001531,2]
[359033922,1745664632863,-305.2702757,0.0001531,2]
[359033923,1745664633077,-194.7297243,0.0001531,2]
[359033924,1745664633087,-553.844072,0.0001531,2]
[359033925,1745664633098,-500.0,0.0001531,2]
[359033926,1745664633108,-500.0,0.0001531,2]
[359033927,1745664633119,-500.0,0.0001531,2]
[359033928,1745664633130,-500.0,0.0001531,2]
[359033929,1745664633140,-500.0,0.0001531,2]
[359033930,1745664633150,-368.86729935,0.0001531,2]
[359033962,1745664638108,-131.13270065,0.0001531,2]
[359033964,1745664638118,-500.0,0.0001531,2]
[359033966,1745664638130,-500.0,0.0001531,2]
[359033968,1745664638140,-500.0,0.0001531,2]
[359033970,1745664638149,-500.0,0.0001531,2]
[359033972,1745664638160,-500.0,0.0001531,2]
[359033974,1745664638170,-500.0,0.0001531,2]
[359033976,1745664638180,-500.0,0.0001531,2]
[359033978,1745664638191,-500.0,0.0001531,2]
[359033980,1745664638201,-500.0,0.0001531,2]
[359033982,1745664638211,-500.0,0.0001531,2]
[359033984,1745664638224,-500.0,0.0001531,2]
[359033986,1745664638235,-500.0,0.0001531,2]
[359033988,1745664638244,-500.0,0.0001531,2]
[359033990,1745664638254,-500.0,0.0001531,2]
[359033992,1745664638264,-500.0,0.0001531,2]
[359033994,1745664638273,-500.0,0.0001531,2]
[359033996,1745664638283,-500.0,0.0001531,2]
[359033998,1745664638293,-500.0,0.0001531,2]
[359034000,1745664638303,-500.0,0.0001531,2]
[359034003,1745664638313,-500.0,0.0001531,2]
[359034006,1745664638322,-395.50695059,0.0001531,2]
[359034008,1745664638332,-500.0,0.0001531,2]
[359034011,1745664638342,-500.0,0.0001531,2]
[359034014,1745664638352,-27.92693664,0.00015311,2]
[359034016,1745664638361,-14175.9343084,0.00015311,2]
[359034018,1745664638370,-250.0,0.00015311,2]
[359034020,1745664638380,-333.01870165,0.00015515,2]
[359034022,1745664638390,-45460.39295805,0.00015611,2]
[359034024,1745664638400,-314.32623923,0.00016164,2]
[359034026,1745664638410,-151.0,0.00016428,2]
[359034028,1745664638420,-207.4,0.00016428,2]
[359034030,1745664638429,-160.0,0.00016435,2]
[359034032,1745664638439,-840.35238838,0.00016438,2]
[359034034,1745664638449,-504.24789912,0.00016438,2]
[359034036,1745664638458,-500.0,0.00016438,2]
[359034038,1745664638467,-500.0,0.00016438,2]
[359034040,1745664638478,-629.59815162,0.00016438,2]
[359034042,1745664638489,-545.77880337,0.00016438,2]
[359034044,1745664638498,-500.0,0.00016438,2]
[359034046,1745664638508,-500.0,0.00016438,2]
[359034049,1745664638519,-501.91325549,0.00016438,2]
[359034050,1745664638530,-500.0,0.00016438,2]
[359034052,1745664638541,-501.95048597,0.00016438,2]
[359034054,1745664638551,-500.0,0.00016438,2]
[359034056,1745664638562,-501.82218365,0.00016438,2]
[359034058,1745664638572,-500.0,0.00016438,2]
[359034060,1745664638581,-500.0,0.00016438,2]
[359034063,1745664638591,-500.0,0.00016438,2]
[359034064,1745664638601,-500.0,0.00016438,2]
[359034066,1745664638611,-272.54223893,0.00016438,2]
[359034068,1745664638621,-500.0,0.00016438,2]
[359034070,1745664638630,-504.12791805,0.00016438,2]
[359034072,1745664638640,-500.0,0.00016438,2]
[359034074,1745664638650,-500.0,0.00016438,2]
[359034076,1745664638659,-500.0,0.00016438,2]
[359034078,1745664638669,-500.0,0.00016438,2]
[359034080,1745664638678,-500.0,0.00016438,2]
[359034082,1745664638688,-507.68529747,0.00016438,2]
[359034085,1745664638698,-500.0,0.00016438,2]
[359034087,1745664638708,-500.0,0.00016438,2]
[359034089,1745664638717,-500.0,0.00016438,2]
[359034091,1745664638727,-500.0,0.00016438,2]
[359034092,1745664638736,-506.26059463,0.00016438,2]
[359034093,1745664638745,-500.0,0.00016438,2]
[359034094,1745664638755,-500.0,0.00016438,2]
[359034095,1745664638765,-500.0,0.00016438,2]
[359034096,1745664638775,-500.0,0.00016438,2]
[359034097,1745664638784,-500.0,0.00016438,2]
[359034098,1745664638794,-500.0,0.00016438,2]
[359034099,1745664638803,-500.0,0.00016438,2]
[359034100,1745664638813,-500.0,0.00016438,2]
[359034101,1745664638823,-500.0,0.00016438,2]